[Event "Early-Titled-Tuesday-Blitz-March-26-2024"]
[Site "Chess.com"]
[Date "2024.03.26"]
[Round "1"]
[White "dretch"]
[Black "sjoerd893"]
[Result "1/2-1/2"]
[WhiteElo "2876"]
[BlackElo "2497"]
[TimeControl "180+1"]
[EndTime "8:08:22 PDT"]
[Termination "Game drawn - insufficient material"]

1. d4 {[%clk 0:03:00.9]} 1... d5 {[%clk 0:02:59.3]} 2. c4 {[%clk 0:03:01]} 2...
c6 {[%clk 0:02:59.7]} 3. Nc3 {[%clk 0:03:01.1]} 3... Nf6 {[%clk 0:03:00.2]} 4.
e3 {[%clk 0:03:01.5]} 4... e6 {[%clk 0:02:59.2]} 5. Bd3 {[%clk 0:03:01.3]} 5...
Nbd7 {[%clk 0:02:59.4]} 6. e4 {[%clk 0:03:01.5]} 6... dxe4 {[%clk 0:02:57.3]} 7.
Nxe4 {[%clk 0:03:01.8]} 7... Nxe4 {[%clk 0:02:57.6]} 8. Bxe4 {[%clk 0:03:02.7]}
8... Nf6 {[%clk 0:02:57.8]} 9. Bc2 {[%clk 0:03:02.9]} 9... c5 {[%clk 0:02:36.7]}
10. Nf3 {[%clk 0:03:02.2]} 10... cxd4 {[%clk 0:02:35.1]} 11. O-O {[%clk
0:03:03.1]} 11... Bc5 {[%clk 0:02:28]} 12. Qd3 {[%clk 0:02:57.8]} 12... O-O
{[%clk 0:02:19.2]} 13. Bg5 {[%clk 0:02:56.4]} 13... g6 {[%clk 0:02:13.4]} 14.
Rad1 {[%clk 0:02:51]} 14... b6 {[%clk 0:02:10.3]} 15. Nxd4 {[%clk 0:01:55.2]}
15... Qxd4 {[%clk 0:02:02.9]} 16. Qxd4 {[%clk 0:01:54.3]} 16... Bxd4 {[%clk
0:02:03.8]} 17. Rxd4 {[%clk 0:01:54.6]} 17... Kg7 {[%clk 0:02:03.6]} 18. Rfd1
{[%clk 0:01:37.4]} 18... e5 {[%clk 0:01:50.1]} 19. Rd6 {[%clk 0:01:34.7]} 19...
Be6 {[%clk 0:01:48.3]} 20. b3 {[%clk 0:01:24.9]} 20... Rac8 {[%clk 0:01:36.5]}
21. a4 {[%clk 0:01:17.6]} 21... Rc7 {[%clk 0:01:28.2]} 22. h3 {[%clk 0:01:00.9]}
22... Rfc8 {[%clk 0:01:24.2]} 23. Bc1 {[%clk 0:00:49.4]} 23... Ne8 {[%clk
0:01:17.5]} 24. R6d2 {[%clk 0:00:43.8]} 24... f6 {[%clk 0:01:09.8]} 25. Be4
{[%clk 0:00:39.1]} 25... Kf7 {[%clk 0:01:06.9]} 26. Ba3 {[%clk 0:00:37]} 26...
f5 {[%clk 0:00:59.3]} 27. Bb1 {[%clk 0:00:31.6]} 27... Rc6 {[%clk 0:00:50.6]}
28. f3 {[%clk 0:00:29.6]} 28... a6 {[%clk 0:00:43.5]} 29. Bb2 {[%clk 0:00:28.8]}
29... Rc5 {[%clk 0:00:40.2]} 30. Re1 {[%clk 0:00:24.3]} 30... b5 {[%clk
0:00:35.9]} 31. cxb5 {[%clk 0:00:20.9]} 31... axb5 {[%clk 0:00:36.8]} 32. b4
{[%clk 0:00:20.4]} 32... Rc4 {[%clk 0:00:31.2]} 33. Ba2 {[%clk 0:00:15]} 33...
Rxb4 {[%clk 0:00:27]} 34. Bxe6+ {[%clk 0:00:15.9]} 34... Kxe6 {[%clk 0:00:27.4]}
35. Rxe5+ {[%clk 0:00:13]} 35... Kf7 {[%clk 0:00:24.7]} 36. Rd7+ {[%clk
0:00:12.8]} 36... Kg8 {[%clk 0:00:24.9]} 37. Rxb5 {[%clk 0:00:12.9]} 37... Rxb5
{[%clk 0:00:22.2]} 38. axb5 {[%clk 0:00:13]} 38... Rb8 {[%clk 0:00:22.9]} 39.
Re7 {[%clk 0:00:12.9]} 39... Nd6 {[%clk 0:00:18.3]} 40. Be5 {[%clk 0:00:12.3]}
40... Rb6 {[%clk 0:00:13.6]} 41. Re6 {[%clk 0:00:12.1]} 41... Nc4 {[%clk
0:00:13.8]} 42. Rxb6 {[%clk 0:00:12.2]} 42... Nxb6 {[%clk 0:00:14.7]} 43. Bc7
{[%clk 0:00:12]} 43... Nc4 {[%clk 0:00:12.6]} 44. Kf2 {[%clk 0:00:11.6]} 44...
Kf7 {[%clk 0:00:12.9]} 45. Ke2 {[%clk 0:00:11.7]} 45... Ke6 {[%clk 0:00:13.2]}
46. Kd3 {[%clk 0:00:11.2]} 46... Kd5 {[%clk 0:00:13.7]} 47. b6 {[%clk 0:00:09]}
47... Na5 {[%clk 0:00:13.4]} 48. h4 {[%clk 0:00:08.9]} 48... Kc6 {[%clk
0:00:10.7]} 49. Kd4 {[%clk 0:00:09]} 49... Nb7 {[%clk 0:00:09.8]} 50. Ke5 {[%clk
0:00:09.2]} 50... Nc5 {[%clk 0:00:10]} 51. Kf6 {[%clk 0:00:09.5]} 51... Nd3
{[%clk 0:00:10.6]} 52. g4 {[%clk 0:00:04.5]} 52... Ne1 {[%clk 0:00:08]} 53. gxf5
{[%clk 0:00:04.4]} 53... Nxf3 {[%clk 0:00:06.5]} 54. h5 {[%clk 0:00:03.2]} 54...
gxh5 {[%clk 0:00:04.9]} 55. Kg7 {[%clk 0:00:03.5]} 55... Nd4 {[%clk 0:00:04.4]}
56. f6 {[%clk 0:00:03.4]} 56... Ne6+ {[%clk 0:00:04.7]} 57. Kh6 {[%clk 0:00:03]}
57... h4 {[%clk 0:00:04.8]} 58. Kh5 {[%clk 0:00:01.8]} 58... h3 {[%clk
0:00:05.1]} 59. Bh2 {[%clk 0:00:02.6]} 59... Kxb6 {[%clk 0:00:04.8]} 60. Kg4
{[%clk 0:00:02.9]} 60... Kc6 {[%clk 0:00:05.4]} 61. Kxh3 {[%clk 0:00:02.8]}
61... Kd7 {[%clk 0:00:06]} 62. Kg4 {[%clk 0:00:03.4]} 62... Ke8 {[%clk
0:00:06.6]} 63. Kf5 {[%clk 0:00:04]} 63... Kf7 {[%clk 0:00:07.4]} 64. Bg3 {[%clk
0:00:04.7]} 64... Nf8 {[%clk 0:00:07.8]} 65. Kg5 {[%clk 0:00:05]} 65... Nd7
{[%clk 0:00:08.4]} 66. Bh4 {[%clk 0:00:04.9]} 66... Nxf6 {[%clk 0:00:09]} 67.
Kh6 {[%clk 0:00:05.5]} 67... Ng8+ {[%clk 0:00:09]} 68. Kxh7 {[%clk 0:00:06]}
1/2-1/2

[Event "Early-Titled-Tuesday-Blitz-March-26-2024"]
[Site "Chess.com"]
[Date "2024.03.26"]
[Round "1"]
[White "Andrei_Skvortsov"]
[Black "Taran2004"]
[Result "1-0"]
[WhiteElo "2729"]
[BlackElo "2396"]
[TimeControl "180+1"]
[EndTime "8:08:25 PDT"]
[Termination "Andrei_Skvortsov won by checkmate"]

1. e4 {[%clk 0:02:56.2]} 1... c6 {[%clk 0:02:59.8]} 2. e5 {[%clk 0:02:52.8]}
2... d5 {[%clk 0:02:54.1]} 3. d4 {[%clk 0:02:11.2]} 3... c5 {[%clk 0:02:53.7]}
4. Nc3 {[%clk 0:02:06.6]} 4... e6 {[%clk 0:02:48.3]} 5. Nf3 {[%clk 0:01:59.6]}
5... Nc6 {[%clk 0:02:48.5]} 6. dxc5 {[%clk 0:01:57.2]} 6... Bxc5 {[%clk
0:02:48.2]} 7. Bb5 {[%clk 0:01:57.5]} 7... Ne7 {[%clk 0:02:48.3]} 8. O-O {[%clk
0:01:57]} 8... a6 {[%clk 0:02:48.2]} 9. Bd3 {[%clk 0:01:53.4]} 9... Ng6 {[%clk
0:02:47.4]} 10. Re1 {[%clk 0:01:48.8]} 10... Qc7 {[%clk 0:02:47]} 11. Qe2 {[%clk
0:01:46.5]} 11... Nd4 {[%clk 0:02:45.2]} 12. Nxd4 {[%clk 0:01:42.5]} 12... Bxd4
{[%clk 0:02:46.1]} 13. Bxg6 {[%clk 0:01:42.6]} 13... hxg6 {[%clk 0:02:45.3]} 14.
Qd3 {[%clk 0:01:30.2]} 14... Bxc3 {[%clk 0:02:43.8]} 15. bxc3 {[%clk 0:01:27.7]}
15... b5 {[%clk 0:02:44]} 16. Ba3 {[%clk 0:01:27.2]} 16... Bb7 {[%clk
0:02:43.5]} 17. Bd6 {[%clk 0:01:27.3]} 17... Qc4 {[%clk 0:02:42.7]} 18. a4
{[%clk 0:01:21.9]} 18... Qxd3 {[%clk 0:02:34.1]} 19. cxd3 {[%clk 0:01:22.8]}
19... Kd7 {[%clk 0:02:32.4]} 20. Rab1 {[%clk 0:01:18.7]} 20... Bc6 {[%clk
0:02:32.1]} 21. a5 {[%clk 0:01:13.2]} 21... f5 {[%clk 0:02:28.5]} 22. Rb4 {[%clk
0:01:08.1]} 22... g5 {[%clk 0:02:27.1]} 23. f4 {[%clk 0:01:06.2]} 23... g4
{[%clk 0:02:27]} 24. g3 {[%clk 0:01:04.8]} 24... Rh5 {[%clk 0:02:06.6]} 25. Rb2
{[%clk 0:01:03.1]} 25... g5 {[%clk 0:02:06.3]} 26. fxg5 {[%clk 0:01:02.3]} 26...
Rxg5 {[%clk 0:02:07.2]} 27. Rf1 {[%clk 0:01:02.6]} 27... Rh5 {[%clk 0:02:03.6]}
28. Rf4 {[%clk 0:01:02.6]} 28... Rc8 {[%clk 0:02:00.8]} 29. Kf1 {[%clk
0:00:57.3]} 29... Ba8 {[%clk 0:01:56.5]} 30. Bb4 {[%clk 0:00:56.4]} 30... Rch8
{[%clk 0:01:54.8]} 31. Rff2 {[%clk 0:00:55.4]} 31... Rc8 {[%clk 0:01:54.1]} 32.
Ke2 {[%clk 0:00:54.2]} 32... Rhh8 {[%clk 0:01:47.3]} 33. Ke3 {[%clk 0:00:53.5]}
33... Rc6 {[%clk 0:01:47]} 34. Kd4 {[%clk 0:00:48.6]} 34... Rcc8 {[%clk
0:01:45.7]} 35. Rfc2 {[%clk 0:00:46.7]} 35... Ke8 {[%clk 0:01:43]} 36. Rb1
{[%clk 0:00:46.3]} 36... Kf7 {[%clk 0:01:42.3]} 37. Rh1 {[%clk 0:00:43.4]} 37...
Rh3 {[%clk 0:01:38.7]} 38. Rg1 {[%clk 0:00:41.2]} 38... Kg6 {[%clk 0:01:37.5]}
39. Bc5 {[%clk 0:00:38.5]} 39... Rh7 {[%clk 0:01:33.6]} 40. Bb6 {[%clk
0:00:38.3]} 40... Rh3 {[%clk 0:01:28]} 41. Rb2 {[%clk 0:00:37]} 41... f4 {[%clk
0:01:27.7]} 42. gxf4 {[%clk 0:00:36.2]} 42... Kf5 {[%clk 0:01:28.4]} 43. Rg3
{[%clk 0:00:30]} 43... Rch8 {[%clk 0:01:26]} 44. Rbg2 {[%clk 0:00:29.2]} 44...
R8h4 {[%clk 0:01:12.8]} 45. Rxh3 {[%clk 0:00:23.9]} 45... gxh3 {[%clk
0:01:10.2]} 46. Rg8 {[%clk 0:00:21.2]} 46... Rxf4+ {[%clk 0:01:03]} 47. Ke3
{[%clk 0:00:20.9]} 47... d4+ {[%clk 0:01:02.4]} 48. Bxd4 {[%clk 0:00:19.5]}
48... Rf3+ {[%clk 0:01:00.3]} 49. Ke2 {[%clk 0:00:19.9]} 49... Bd5 {[%clk
0:01:00.8]} 50. Rf8+ {[%clk 0:00:20]} 50... Kg4 {[%clk 0:01:01.2]} 51. Rg8+
{[%clk 0:00:19.9]} 51... Kf5 {[%clk 0:01:00.3]} 52. c4 {[%clk 0:00:20.1]} 52...
bxc4 {[%clk 0:00:59.9]} 53. dxc4 {[%clk 0:00:21]} 53... Be4 {[%clk 0:00:58.9]}
54. Rf8+ {[%clk 0:00:20.5]} 54... Kg4 {[%clk 0:00:59.2]} 55. Rxf3 {[%clk
0:00:16.5]} 55... Bxf3+ {[%clk 0:01:00.1]} 56. Ke3 {[%clk 0:00:16.9]} 56... Bc6
{[%clk 0:00:59.9]} 57. Bc3 {[%clk 0:00:17.1]} 57... Kf5 {[%clk 0:00:59.4]} 58.
Kd4 {[%clk 0:00:17.2]} 58... Kf4 {[%clk 0:00:57.9]} 59. Kc5 {[%clk 0:00:17.2]}
59... Ba4 {[%clk 0:00:55.7]} 60. Kd6 {[%clk 0:00:17.2]} 60... Bb3 {[%clk
0:00:55.9]} 61. c5 {[%clk 0:00:17.8]} 61... Kf3 {[%clk 0:00:54.8]} 62. c6 {[%clk
0:00:18]} 62... Kg2 {[%clk 0:00:55.1]} 63. c7 {[%clk 0:00:18.1]} 63... Kxh2
{[%clk 0:00:56]} 64. c8=Q {[%clk 0:00:18.4]} 64... Kg2 {[%clk 0:00:56.7]} 65.
Qg8+ {[%clk 0:00:18.4]} 65... Kf1 {[%clk 0:00:56.7]} 66. Qf7+ {[%clk 0:00:18.4]}
66... Kg2 {[%clk 0:00:56]} 67. Qg6+ {[%clk 0:00:18.9]} 67... Kh1 {[%clk
0:00:56.3]} 68. Bd4 {[%clk 0:00:11.5]} 68... h2 {[%clk 0:00:56.2]} 69. Qg3
{[%clk 0:00:10.9]} 69... Bd5 {[%clk 0:00:54.6]} 70. Ke7 {[%clk 0:00:11.1]} 70...
Bg2 {[%clk 0:00:49.9]} 71. Kf6 {[%clk 0:00:11.7]} 71... Bd5 {[%clk 0:00:49.5]}
72. Kg5 {[%clk 0:00:12.6]} 72... Be4 {[%clk 0:00:48.5]} 73. Kf4 {[%clk
0:00:13.5]} 73... Bd5 {[%clk 0:00:46.8]} 74. Ke3 {[%clk 0:00:14.4]} 74... Be4
{[%clk 0:00:46.3]} 75. Kf2 {[%clk 0:00:15.3]} 75... Bd5 {[%clk 0:00:43]} 76. Qg5
{[%clk 0:00:16.2]} 76... Bb3 {[%clk 0:00:34.3]} 77. Qc1+ {[%clk 0:00:15.8]}
77... Bd1 {[%clk 0:00:35.2]} 78. Qxd1# {[%clk 0:00:16.2]} 1-0

[Event "Early-Titled-Tuesday-Blitz-March-26-2024"]
[Site "Chess.com"]
[Date "2024.03.26"]
[Round "1"]
[White "Stanbad1"]
[Black "Tol_Tol"]
[Result "0-1"]
[WhiteElo "2648"]
[BlackElo "2347"]
[TimeControl "180+1"]
[EndTime "8:08:26 PDT"]
[Termination "Tol_Tol won by resignation"]

1. d4 {[%clk 0:03:00.9]} 1... Nf6 {[%clk 0:02:57.8]} 2. c4 {[%clk 0:03:00.8]}
2... g6 {[%clk 0:02:57.7]} 3. Nc3 {[%clk 0:03:01]} 3... Bg7 {[%clk 0:02:58.1]}
4. e4 {[%clk 0:03:00.9]} 4... O-O {[%clk 0:02:59]} 5. h3 {[%clk 0:03:00.6]} 5...
d6 {[%clk 0:02:59.5]} 6. Be3 {[%clk 0:02:59.6]} 6... c5 {[%clk 0:02:57.6]} 7.
Nf3 {[%clk 0:02:58.3]} 7... cxd4 {[%clk 0:02:55]} 8. Nxd4 {[%clk 0:02:59.2]}
8... Nc6 {[%clk 0:02:55.8]} 9. Be2 {[%clk 0:02:58.8]} 9... a6 {[%clk 0:02:39.5]}
10. O-O {[%clk 0:02:58.1]} 10... Nxd4 {[%clk 0:02:39.7]} 11. Bxd4 {[%clk
0:02:59]} 11... Be6 {[%clk 0:02:40.1]} 12. b3 {[%clk 0:02:57]} 12... Rc8 {[%clk
0:02:39.8]} 13. Rc1 {[%clk 0:02:56.5]} 13... Qa5 {[%clk 0:02:33.1]} 14. f3
{[%clk 0:02:29.6]} 14... Nh5 {[%clk 0:02:25.9]} 15. Re1 {[%clk 0:02:12.3]} 15...
Qg5 {[%clk 0:02:14.4]} 16. Bxg7 {[%clk 0:01:44.6]} 16... Bxh3 {[%clk 0:02:06.1]}
17. Bf1 {[%clk 0:01:20.9]} 17... Kxg7 {[%clk 0:01:42.5]} 18. Qd5 {[%clk
0:00:57.2]} 18... e5 {[%clk 0:01:04.6]} 19. Ne2 {[%clk 0:00:50.4]} 19... Rc7
{[%clk 0:00:33.7]} 20. Rcd1 {[%clk 0:00:44.4]} 20... Be6 {[%clk 0:00:29.4]} 21.
Qxd6 {[%clk 0:00:32]} 21... Rd7 {[%clk 0:00:29]} 22. Qc5 {[%clk 0:00:31]} 22...
Rxd1 {[%clk 0:00:26.7]} 23. Rxd1 {[%clk 0:00:31.9]} 23... Rc8 {[%clk 0:00:25.4]}
24. Qf2 {[%clk 0:00:32.4]} 24... Rd8 {[%clk 0:00:21.2]} 25. Rxd8 {[%clk
0:00:24.6]} 25... Qxd8 {[%clk 0:00:21.1]} 26. Qe1 {[%clk 0:00:21.5]} 26... Qd6
{[%clk 0:00:18.3]} 27. Qc3 {[%clk 0:00:18.5]} 27... Qc5+ {[%clk 0:00:18]} 28.
Kh2 {[%clk 0:00:17.5]} 28... Nf6 {[%clk 0:00:15.9]} 29. Qd2 {[%clk 0:00:16]}
29... h6 {[%clk 0:00:15.2]} 30. g3 {[%clk 0:00:16.4]} 30... g5 {[%clk
0:00:15.6]} 31. Kg2 {[%clk 0:00:16.7]} 31... Nd7 {[%clk 0:00:11.5]} 32. Nc3
{[%clk 0:00:16]} 32... Qd4 {[%clk 0:00:10.9]} 33. Qxd4 {[%clk 0:00:15.5]} 33...
exd4 {[%clk 0:00:11.2]} 34. Nd5 {[%clk 0:00:16.4]} 34... Bxd5 {[%clk 0:00:10.9]}
35. cxd5 {[%clk 0:00:16.7]} 35... Kf6 {[%clk 0:00:10.5]} 36. Kf2 {[%clk
0:00:17.2]} 36... Ke5 {[%clk 0:00:10.8]} 37. Bd3 {[%clk 0:00:16.5]} 37... Nc5
{[%clk 0:00:09.9]} 38. Ke2 {[%clk 0:00:16.3]} 38... a5 {[%clk 0:00:09.9]} 39.
Bc2 {[%clk 0:00:16.1]} 39... h5 {[%clk 0:00:06.1]} 40. Kf2 {[%clk 0:00:15.3]}
40... h4 {[%clk 0:00:05.9]} 41. gxh4 {[%clk 0:00:16.2]} 41... gxh4 {[%clk
0:00:06.4]} 42. Kg2 {[%clk 0:00:16.8]} 42... Kf4 {[%clk 0:00:07]} 43. Bd1 {[%clk
0:00:16.3]} 43... Nd7 {[%clk 0:00:05.5]} 44. Kf2 {[%clk 0:00:16.3]} 44... h3
{[%clk 0:00:03.7]} 45. Be2 {[%clk 0:00:16.4]} 45... Ne5 {[%clk 0:00:03.6]} 46.
a3 {[%clk 0:00:15.8]} 46... d3 {[%clk 0:00:04.1]} 47. Bd1 {[%clk 0:00:14.7]}
47... b6 {[%clk 0:00:04.3]} 48. b4 {[%clk 0:00:14.7]} 48... axb4 {[%clk
0:00:03.9]} 49. axb4 {[%clk 0:00:15.6]} 49... f5 {[%clk 0:00:04.5]} 50. exf5
{[%clk 0:00:15.5]} 50... Kxf5 {[%clk 0:00:04.6]} 51. Kg3 {[%clk 0:00:15.7]}
51... Nc4 {[%clk 0:00:04.1]} 52. Kxh3 {[%clk 0:00:15.4]} 52... Nb2 {[%clk
0:00:04.6]} 53. Bb3 {[%clk 0:00:14.9]} 53... d2 {[%clk 0:00:05.1]} 54. Kg3
{[%clk 0:00:15]} 54... d1=Q {[%clk 0:00:05.5]} 55. Bxd1 {[%clk 0:00:15.5]} 55...
Nxd1 {[%clk 0:00:06.4]} 56. d6 {[%clk 0:00:16.2]} 56... Ke6 {[%clk 0:00:06.8]}
57. Kf4 {[%clk 0:00:16.3]} 57... Kxd6 {[%clk 0:00:07.4]} 58. Ke4 {[%clk
0:00:17.2]} 58... Nc3+ {[%clk 0:00:07.7]} 59. Kd3 {[%clk 0:00:17.6]} 59... Nd5
{[%clk 0:00:07.7]} 60. Kd4 {[%clk 0:00:17.9]} 60... Nxb4 {[%clk 0:00:07.6]} 61.
Kc4 {[%clk 0:00:18.8]} 61... Nd5 {[%clk 0:00:06.2]} 62. Kb5 {[%clk 0:00:19.7]}
62... Ke5 {[%clk 0:00:06.1]} 63. Kc6 {[%clk 0:00:19.5]} 63... Kd4 {[%clk
0:00:04.1]} 64. f4 {[%clk 0:00:19.2]} 64... Kc4 {[%clk 0:00:04.6]} 65. f5 {[%clk
0:00:18.7]} 65... b5 {[%clk 0:00:05.3]} 0-1

[Event "Early-Titled-Tuesday-Blitz-March-26-2024"]
[Site "Chess.com"]
[Date "2024.03.26"]
[Round "1"]
[White "TigrVShlyape"]
[Black "YegoryoCh"]
[Result "1-0"]
[WhiteElo "2901"]
[BlackElo "2497"]
[TimeControl "180+1"]
[EndTime "8:08:28 PDT"]
[Termination "TigrVShlyape won on time"]

1. e4 {[%clk 0:03:00.9]} 1... e5 {[%clk 0:02:59.1]} 2. Nf3 {[%clk 0:03:00.4]}
2... Nc6 {[%clk 0:02:59.5]} 3. Bb5 {[%clk 0:03:00.4]} 3... a6 {[%clk 0:02:59.1]}
4. Ba4 {[%clk 0:03:00.5]} 4... d6 {[%clk 0:02:59.5]} 5. c3 {[%clk 0:03:00]} 5...
Bd7 {[%clk 0:02:59.4]} 6. O-O {[%clk 0:02:58.5]} 6... g5 {[%clk 0:02:59.5]} 7.
d4 {[%clk 0:02:53.3]} 7... g4 {[%clk 0:02:59.6]} 8. Ne1 {[%clk 0:02:50.7]} 8...
h5 {[%clk 0:02:59.6]} 9. d5 {[%clk 0:02:26.7]} 9... Nce7 {[%clk 0:02:53.7]} 10.
f4 {[%clk 0:02:26.6]} 10... exf4 {[%clk 0:02:50]} 11. Bxf4 {[%clk 0:02:24.4]}
11... Ng6 {[%clk 0:02:49.5]} 12. Be3 {[%clk 0:02:21.4]} 12... Bg7 {[%clk
0:02:43.6]} 13. Nd2 {[%clk 0:02:19.1]} 13... N8e7 {[%clk 0:02:42.7]} 14. Nd3
{[%clk 0:02:04.9]} 14... O-O {[%clk 0:02:31.6]} 15. Bd4 {[%clk 0:00:49.1]} 15...
f5 {[%clk 0:02:18.8]} 16. Bxg7 {[%clk 0:00:47.1]} 16... Kxg7 {[%clk 0:02:19.7]}
17. Bxd7 {[%clk 0:00:38.2]} 17... Qxd7 {[%clk 0:02:19.5]} 18. exf5 {[%clk
0:00:28.2]} 18... Rxf5 {[%clk 0:02:16.5]} 19. c4 {[%clk 0:00:22.7]} 19... Raf8
{[%clk 0:02:16.2]} 20. Qc2 {[%clk 0:00:21.7]} 20... c6 {[%clk 0:01:49.2]} 21.
Qc3+ {[%clk 0:00:21.5]} 21... Kh7 {[%clk 0:01:49.1]} 22. Rxf5 {[%clk 0:00:19.7]}
22... Rxf5 {[%clk 0:01:47.8]} 23. dxc6 {[%clk 0:00:19]} 23... Qxc6 {[%clk
0:01:47.9]} 24. Rf1 {[%clk 0:00:18.4]} 24... Nh4 {[%clk 0:01:44]} 25. Ne1 {[%clk
0:00:15.3]} 25... Qc5+ {[%clk 0:01:33.2]} 26. Kh1 {[%clk 0:00:15.3]} 26... Rxf1+
{[%clk 0:01:27.6]} 27. Nxf1 {[%clk 0:00:15.3]} 27... Qf2 {[%clk 0:01:27.8]} 28.
Ng3 {[%clk 0:00:13.9]} 28... Nef5 {[%clk 0:01:24.8]} 29. b4 {[%clk 0:00:08.1]}
29... Ne3 {[%clk 0:01:10]} 30. Qd3+ {[%clk 0:00:07.1]} 30... Kg8 {[%clk
0:01:06.8]} 31. Qe2 {[%clk 0:00:07.2]} 31... Qxe2 {[%clk 0:00:31.7]} 32. Nxe2
{[%clk 0:00:07]} 32... Nxc4 {[%clk 0:00:32]} 33. Nf4 {[%clk 0:00:07]} 33... Nf5
{[%clk 0:00:20.2]} 34. Nxh5 {[%clk 0:00:06.7]} 34... Nfe3 {[%clk 0:00:16.3]} 35.
h3 {[%clk 0:00:06]} 35... gxh3 {[%clk 0:00:16]} 36. gxh3 {[%clk 0:00:05.9]}
36... Kf7 {[%clk 0:00:16.9]} 37. Kg1 {[%clk 0:00:05.8]} 37... Kg6 {[%clk
0:00:16.6]} 38. Ng3 {[%clk 0:00:05.4]} 38... Ne5 {[%clk 0:00:13.5]} 39. Kf2
{[%clk 0:00:04.6]} 39... Nd5 {[%clk 0:00:13.4]} 40. a3 {[%clk 0:00:04.2]} 40...
Nc3 {[%clk 0:00:14.1]} 41. Ke3 {[%clk 0:00:03.7]} 41... Kf6 {[%clk 0:00:12.2]}
42. Ne4+ {[%clk 0:00:03.3]} 42... Nxe4 {[%clk 0:00:11.7]} 43. Kxe4 {[%clk
0:00:04.2]} 43... Nc4 {[%clk 0:00:10.4]} 44. Nc2 {[%clk 0:00:04.8]} 44... Ke6
{[%clk 0:00:10.1]} 45. Nd4+ {[%clk 0:00:04.5]} 45... Kf6 {[%clk 0:00:10.4]} 46.
a4 {[%clk 0:00:05.3]} 46... Nb6 {[%clk 0:00:08.9]} 47. a5 {[%clk 0:00:05.2]}
47... Na4 {[%clk 0:00:05.8]} 48. Kd5 {[%clk 0:00:05.2]} 48... Ke7 {[%clk
0:00:06]} 49. Nf5+ {[%clk 0:00:05.4]} 49... Kd7 {[%clk 0:00:06]} 50. Nxd6 {[%clk
0:00:06.3]} 50... Nc3+ {[%clk 0:00:05.5]} 51. Ke5 {[%clk 0:00:06.9]} 51... Na2
{[%clk 0:00:04.9]} 52. h4 {[%clk 0:00:07.3]} 52... Nxb4 {[%clk 0:00:04.5]} 53.
Nc4 {[%clk 0:00:07.9]} 53... Nc6+ {[%clk 0:00:04.8]} 54. Kf6 {[%clk 0:00:08.3]}
54... Ne7 {[%clk 0:00:02.6]} 55. h5 {[%clk 0:00:07.9]} 55... Nd5+ {[%clk
0:00:03.2]} 56. Kf7 {[%clk 0:00:06.6]} 56... Ne7 {[%clk 0:00:01.2]} 57. h6
{[%clk 0:00:06.7]} 57... Nf5 {[%clk 0:00:01.5]} 58. h7 {[%clk 0:00:07]} 1-0

[Event "Early-Titled-Tuesday-Blitz-March-26-2024"]
[Site "Chess.com"]
[Date "2024.03.26"]
[Round "1"]
[White "BigAl"]
[Black "stollenmonster"]
[Result "0-1"]
[WhiteElo "2505"]
[BlackElo "2911"]
[TimeControl "180+1"]
[EndTime "8:08:32 PDT"]
[Termination "stollenmonster won on time"]

1. Nf3 {[%clk 0:03:00.9]} 1... Nf6 {[%clk 0:02:59.6]} 2. g3 {[%clk 0:03:01.6]}
2... e6 {[%clk 0:03:00.4]} 3. Bg2 {[%clk 0:03:02.3]} 3... d5 {[%clk 0:03:01.1]}
4. O-O {[%clk 0:03:03.1]} 4... Be7 {[%clk 0:03:01.8]} 5. d3 {[%clk 0:03:03.8]}
5... O-O {[%clk 0:03:01.9]} 6. Nbd2 {[%clk 0:03:04.5]} 6... d4 {[%clk
0:03:02.5]} 7. Nb3 {[%clk 0:03:01.6]} 7... c5 {[%clk 0:03:00.9]} 8. c3 {[%clk
0:03:01]} 8... Nc6 {[%clk 0:03:01.2]} 9. cxd4 {[%clk 0:03:01]} 9... cxd4 {[%clk
0:03:02.1]} 10. Bf4 {[%clk 0:02:50.6]} 10... Nd5 {[%clk 0:02:57.6]} 11. Bd2
{[%clk 0:02:50.4]} 11... e5 {[%clk 0:02:55.4]} 12. Rc1 {[%clk 0:02:47.5]} 12...
Be6 {[%clk 0:02:54.5]} 13. Nc5 {[%clk 0:02:39.7]} 13... Bxc5 {[%clk 0:02:54.8]}
14. Rxc5 {[%clk 0:02:39.3]} 14... h6 {[%clk 0:02:54.7]} 15. a3 {[%clk
0:02:32.7]} 15... Qd6 {[%clk 0:02:53.4]} 16. Rc1 {[%clk 0:02:26.2]} 16... Rac8
{[%clk 0:02:51.8]} 17. Nh4 {[%clk 0:01:44]} 17... Nce7 {[%clk 0:02:47]} 18. Qa4
{[%clk 0:01:30.1]} 18... a6 {[%clk 0:02:41.5]} 19. h3 {[%clk 0:01:25.6]} 19...
Kh7 {[%clk 0:02:32.7]} 20. Kh2 {[%clk 0:01:22.3]} 20... f5 {[%clk 0:02:27.1]}
21. Rxc8 {[%clk 0:01:19.5]} 21... Rxc8 {[%clk 0:02:28]} 22. Rc1 {[%clk
0:01:20.1]} 22... Rxc1 {[%clk 0:02:26.6]} 23. Bxc1 {[%clk 0:01:21]} 23... Nc6
{[%clk 0:02:26.6]} 24. Bd2 {[%clk 0:01:18.3]} 24... Nde7 {[%clk 0:02:24]} 25.
Qc2 {[%clk 0:01:15.6]} 25... Bd5 {[%clk 0:02:20.8]} 26. Bxd5 {[%clk 0:01:04.4]}
26... Qxd5 {[%clk 0:02:21]} 27. Ng2 {[%clk 0:00:44.4]} 27... Ng6 {[%clk
0:02:18.1]} 28. b4 {[%clk 0:00:33]} 28... e4 {[%clk 0:02:12.6]} 29. Nf4 {[%clk
0:00:31.8]} 29... Nxf4 {[%clk 0:02:10.7]} 30. Bxf4 {[%clk 0:00:32.7]} 30... g5
{[%clk 0:02:07.9]} 31. Bc7 {[%clk 0:00:30.4]} 31... Kg7 {[%clk 0:02:00.5]} 32.
Bb6 {[%clk 0:00:26.5]} 32... h5 {[%clk 0:01:56]} 33. Kg1 {[%clk 0:00:22.8]}
33... Kf7 {[%clk 0:01:52.3]} 34. Qd2 {[%clk 0:00:22.5]} 34... Kg6 {[%clk
0:01:50.3]} 35. h4 {[%clk 0:00:22.2]} 35... f4 {[%clk 0:01:45.1]} 36. gxf4
{[%clk 0:00:20.7]} 36... gxh4 {[%clk 0:01:45.3]} 37. dxe4 {[%clk 0:00:20.1]}
37... Qxe4 {[%clk 0:01:45.5]} 38. f3 {[%clk 0:00:20.4]} 38... Qb1+ {[%clk
0:01:34.8]} 39. Kh2 {[%clk 0:00:20.5]} 39... h3 {[%clk 0:01:34.6]} 40. Bxd4
{[%clk 0:00:12.1]} 40... Qf1 {[%clk 0:01:33.5]} 41. e3 {[%clk 0:00:12.5]} 41...
Qxf3 {[%clk 0:01:31]} 42. Qc2+ {[%clk 0:00:11.9]} 42... Kh6 {[%clk 0:01:29.8]}
43. Bf6 {[%clk 0:00:11.5]} 43... Qxe3 {[%clk 0:01:03.3]} 44. Bg5+ {[%clk
0:00:10.6]} 44... Kg7 {[%clk 0:01:03.6]} 45. Qf5 {[%clk 0:00:10]} 45... Qe2+
{[%clk 0:00:51.9]} 46. Kxh3 {[%clk 0:00:10.5]} 46... Qf1+ {[%clk 0:00:51.5]} 47.
Kh2 {[%clk 0:00:10.8]} 47... Qe2+ {[%clk 0:00:48]} 48. Kh1 {[%clk 0:00:10.2]}
48... Qd1+ {[%clk 0:00:38.7]} 49. Kh2 {[%clk 0:00:10.6]} 49... Qd6 {[%clk
0:00:25.5]} 50. Qe4 {[%clk 0:00:07.2]} 50... Nd4 {[%clk 0:00:22.8]} 51. Kg2
{[%clk 0:00:05.1]} 51... Qc6 {[%clk 0:00:17.8]} 52. Qxc6 {[%clk 0:00:05.1]}
52... Nxc6 {[%clk 0:00:18.6]} 53. Kh3 {[%clk 0:00:05.5]} 53... Kg6 {[%clk
0:00:18.8]} 54. Kh4 {[%clk 0:00:06.3]} 54... Nd4 {[%clk 0:00:18.5]} 55. Bd8
{[%clk 0:00:05.6]} 55... Nc2 {[%clk 0:00:17.5]} 56. Bg5 {[%clk 0:00:03.1]} 56...
Nxa3 {[%clk 0:00:17]} 57. Kg3 {[%clk 0:00:04]} 57... Kf5 {[%clk 0:00:16.9]} 58.
Be7 {[%clk 0:00:04.9]} 58... Nc2 {[%clk 0:00:16.3]} 59. Kf3 {[%clk 0:00:05.3]}
59... Nd4+ {[%clk 0:00:16]} 60. Ke3 {[%clk 0:00:05.5]} 60... Ne6 {[%clk
0:00:16.9]} 61. Kd3 {[%clk 0:00:05.1]} 61... Nxf4+ {[%clk 0:00:15.7]} 62. Kc4
{[%clk 0:00:06]} 62... Ng6 {[%clk 0:00:14.8]} 63. Bd8 {[%clk 0:00:05.6]} 63...
Ne5+ {[%clk 0:00:15]} 64. Kc5 {[%clk 0:00:05.4]} 64... Nc6 {[%clk 0:00:14.5]}
65. Kb6 {[%clk 0:00:05.3]} 65... Nxd8 {[%clk 0:00:13.9]} 0-1